[Event "Titled Tuesday Blitz October 31 Late 2023"]
[White "Ankerst, Mihael"]
[Black "Leiva, Gianmarco"]
[WhiteFideId "14602369"]
[BlackFideId "3804399"]
[WhiteElo "2419"]
[BlackElo "2698"]
[Result "1-0"]
[Round "2"]
[TimeControl "180+1"]
[Date "2023.10.31"]
[WhiteClock "0:00:25"]
[BlackClock "0:00:13"]
[Board "65"]

1. e4 {[%clk 0:02:51]}  c5 {[%clk 0:02:59]} 2. Nf3 {[%clk 0:02:50]}  d6 {[%clk 0:02:58]} 3. d4 {[%clk 0:02:50]}  cxd4 {[%clk 0:02:59]} 4. Nxd4 {[%clk 0:02:50]}  Nf6 {[%clk 0:03:00]} 5. Nc3 {[%clk 0:02:51]}  a6 {[%clk 0:03:00]} 6. Bc4 {[%clk 0:02:51]}  e6 {[%clk 0:03:01]} 7. Bb3 {[%clk 0:02:51]}  b5 {[%clk 0:03:01]} 8. Bg5 {[%clk 0:02:50]}  Be7 {[%clk 0:02:53]} 9. Qf3 {[%clk 0:02:49]}  Qc7 {[%clk 0:02:50]} 10. O-O-O {[%clk 0:02:49]}  O-O {[%clk 0:02:25]} 11. e5 {[%clk 0:02:45]}  Bb7 {[%clk 0:02:24]} 12. exf6 {[%clk 0:02:41]}  Bxf3 {[%clk 0:02:23]} 13. fxe7 {[%clk 0:02:37]}  Bxd1 {[%clk 0:02:24]} 14. Nxe6 {[%clk 0:02:35]}  Qxe7 {[%clk 0:01:07]} 15. Bxe7 {[%clk 0:02:32]}  Re8 {[%clk 0:01:08]} 16. Nc7 {[%clk 0:02:23]}  Rxe7 {[%clk 0:01:08]} 17. Nxa8 {[%clk 0:02:23]}  Bg4 {[%clk 0:01:03]} 18. Nb6 {[%clk 0:02:13]}  Be6 {[%clk 0:01:03]} 19. Nbd5 {[%clk 0:02:10]}  Rb7 {[%clk 0:01:00]} 20. Re1 {[%clk 0:02:05]}  Kf8 {[%clk 0:01:00]} 21. f4 {[%clk 0:02:04]}  Nd7 {[%clk 0:00:57]} 22. Ne4 {[%clk 0:01:58]}  Nc5 {[%clk 0:00:56]} 23. Nxc5 {[%clk 0:01:29]}  dxc5 {[%clk 0:00:56]} 24. c4 {[%clk 0:01:29]}  Rd7 {[%clk 0:00:29]} 25. Ne3 {[%clk 0:01:14]}  g6 {[%clk 0:00:24]} 26. cxb5 {[%clk 0:01:12]}  Bxb3 {[%clk 0:00:25]} 27. axb3 {[%clk 0:01:11]}  axb5 {[%clk 0:00:26]} 28. Rd1 {[%clk 0:01:11]}  Re7 {[%clk 0:00:26]} 29. Kd2 {[%clk 0:01:11]}  Re4 {[%clk 0:00:26]} 30. g3 {[%clk 0:01:10]}  Rd4+ {[%clk 0:00:25]} 31. Ke2 {[%clk 0:01:09]}  Rb4 {[%clk 0:00:25]} 32. Rd3 {[%clk 0:01:09]}  c4 {[%clk 0:00:23]} 33. bxc4 {[%clk 0:01:07]}  bxc4 {[%clk 0:00:24]} 34. Rd2 {[%clk 0:01:07]}  h5 {[%clk 0:00:15]} 35. Rc2 {[%clk 0:01:07]}  h4 {[%clk 0:00:16]} 36. Nxc4 {[%clk 0:01:04]}  h3 {[%clk 0:00:17]} 37. Kf3 {[%clk 0:01:04]}  f5 {[%clk 0:00:17]} 38. Rc3 {[%clk 0:00:53]}  Kg7 {[%clk 0:00:17]} 39. g4 {[%clk 0:00:50]}  fxg4+ {[%clk 0:00:14]} 40. Kxg4 {[%clk 0:00:49]}  Kf6 {[%clk 0:00:14]} 41. Kxh3 {[%clk 0:00:47]}  Kf5 {[%clk 0:00:15]} 42. Kg3 {[%clk 0:00:46]}  Ke4 {[%clk 0:00:15]} 43. Kg4 {[%clk 0:00:42]}  Kd4 {[%clk 0:00:16]} 44. Rc2 {[%clk 0:00:42]}  Kd3 {[%clk 0:00:15]} 45. Rc1 {[%clk 0:00:40]}  Rb5 {[%clk 0:00:11]} 46. h4 {[%clk 0:00:39]}  Ke2 {[%clk 0:00:03]} 47. Ne5 {[%clk 0:00:33]}  Kd2 {[%clk 0:00:04]} 48. Rg1 {[%clk 0:00:31]}  Rxb2 {[%clk 0:00:04]} 49. Rg2+ {[%clk 0:00:31]}  Ke3 {[%clk 0:00:04]} 50. Rxb2 {[%clk 0:00:29]}  g5 {[%clk 0:00:05]} 51. fxg5 {[%clk 0:00:29]}  Ke4 {[%clk 0:00:05]} 52. Rf2 {[%clk 0:00:28]}  Kd4 {[%clk 0:00:06]} 53. g6 {[%clk 0:00:28]}  Ke3 {[%clk 0:00:07]} 54. Rf4 {[%clk 0:00:27]}  Ke2 {[%clk 0:00:08]} 55. Rf3 {[%clk 0:00:27]}  Kd2 {[%clk 0:00:08]} 56. Kf4 {[%clk 0:00:27]}  Ke1 {[%clk 0:00:09]} 57. Ke3 {[%clk 0:00:26]}  Kd1 {[%clk 0:00:10]} 58. Rf2 {[%clk 0:00:26]}  Kc1 {[%clk 0:00:11]} 59. g7 {[%clk 0:00:25]}  Kb1 {[%clk 0:00:12]} 60. g8=Q {[%clk 0:00:25]}  Ka1 {[%clk 0:00:13]} 61. Qg1# {[%clk 0:00:25]} 1-0


[Site "https://www.chess.com"]

[Event "Titled Tuesday Blitz October 31 Late 2023"]
[White "Abduzhaparov"]
[Black "Mendez Fortes, Eduardo Jesus"]
[BlackFideId "3502376"]
[WhiteElo "2410"]
[BlackElo "2694"]
[Result "1-0"]
[Round "2"]
[TimeControl "180+1"]
[Date "2023.10.31"]
[WhiteClock "0:01:28"]
[BlackClock "0:01:41"]
[Board "67"]

1. Nf3 {[%clk 0:02:57]}  d5 {[%clk 0:02:58]} 2. c4 {[%clk 0:02:58]}  e6 {[%clk 0:02:58]} 3. g3 {[%clk 0:02:57]}  Nf6 {[%clk 0:02:58]} 4. Bg2 {[%clk 0:02:58]}  dxc4 {[%clk 0:02:58]} 5. Qa4+ {[%clk 0:02:58]}  Nbd7 {[%clk 0:02:59]} 6. Qxc4 {[%clk 0:02:54]}  a6 {[%clk 0:02:59]} 7. Qc2 {[%clk 0:02:54]}  c5 {[%clk 0:02:59]} 8. O-O {[%clk 0:02:53]}  Qc7 {[%clk 0:02:59]} 9. d4 {[%clk 0:02:50]}  Bd6 {[%clk 0:02:59]} 10. dxc5 {[%clk 0:02:47]}  Nxc5 {[%clk 0:02:47]} 11. Be3 {[%clk 0:02:46]}  Nce4 {[%clk 0:02:28]} 12. Qxc7 {[%clk 0:02:27]}  Bxc7 {[%clk 0:02:29]} 13. Rc1 {[%clk 0:02:28]}  Bd6 {[%clk 0:02:27]} 14. Nbd2 {[%clk 0:02:26]}  Nxd2 {[%clk 0:02:26]} 15. Nxd2 {[%clk 0:02:24]}  O-O {[%clk 0:02:26]} 16. Ne4 {[%clk 0:02:18]}  Nxe4 {[%clk 0:02:24]} 17. Bxe4 {[%clk 0:02:19]}  Rb8 {[%clk 0:02:23]} 18. Ba7 {[%clk 0:02:13]}  Ra8 {[%clk 0:02:23]} 19. Bc5 {[%clk 0:02:12]}  Bxc5 {[%clk 0:02:14]} 20. Rxc5 {[%clk 0:02:13]}  Rd8 {[%clk 0:02:11]} 21. Rc7 {[%clk 0:02:06]}  Rb8 {[%clk 0:02:11]} 22. Rac1 {[%clk 0:01:58]}  Kf8 {[%clk 0:01:56]} 23. h4 {[%clk 0:01:52]}  h6 {[%clk 0:01:55]} 24. a3 {[%clk 0:01:44]}  b6 {[%clk 0:01:45]} 25. Ra7 {[%clk 0:01:43]}  a5 {[%clk 0:01:45]} 26. Rcc7 {[%clk 0:01:36]}  f5 {[%clk 0:01:43]} 27. Rf7+ {[%clk 0:01:32]}  Kg8 {[%clk 0:01:43]} 28. Rxg7+ {[%clk 0:01:32]}  Kf8 {[%clk 0:01:43]} 29. Raf7+ {[%clk 0:01:28]}  Ke8 {[%clk 0:01:41]} 30. Bc6+ {[%clk 0:01:28]} 1-0


[Site "https://www.chess.com"]

[Event "Titled Tuesday Blitz October 31 Late 2023"]
[White "Hoffmann, Asa"]
[Black "Janaszak, Dawid"]
[WhiteFideId "2001470"]
[BlackFideId "1119206"]
[WhiteElo "2410"]
[BlackElo "2683"]
[Result "0-1"]
[Round "2"]
[TimeControl "180+1"]
[Date "2023.10.31"]
[WhiteClock "0:00:38"]
[BlackClock "0:00:52"]
[Board "68"]

1. d4 {[%clk 0:02:55]}  d5 {[%clk 0:03:00]} 2. Bg5 {[%clk 0:02:54]}  f6 {[%clk 0:02:59]} 3. Bf4 {[%clk 0:02:54]}  c5 {[%clk 0:02:54]} 4. c3 {[%clk 0:02:53]}  Nc6 {[%clk 0:02:54]} 5. Nf3 {[%clk 0:02:53]}  g5 {[%clk 0:02:52]} 6. Be3 {[%clk 0:02:49]}  Nh6 {[%clk 0:02:48]} 7. h3 {[%clk 0:02:43]}  Nf5 {[%clk 0:02:48]} 8. Bc1 {[%clk 0:02:41]}  h5 {[%clk 0:02:33]} 9. e3 {[%clk 0:02:38]}  c4 {[%clk 0:02:29]} 10. b3 {[%clk 0:02:38]}  b5 {[%clk 0:02:27]} 11. a4 {[%clk 0:02:37]}  Na5 {[%clk 0:02:25]} 12. bxc4 {[%clk 0:02:24]}  bxc4 {[%clk 0:02:23]} 13. Ba3 {[%clk 0:02:19]}  Bg7 {[%clk 0:02:12]} 14. Nbd2 {[%clk 0:02:18]}  Qc7 {[%clk 0:02:00]} 15. Qc2 {[%clk 0:02:16]}  Nd6 {[%clk 0:01:57]} 16. Qg6+ {[%clk 0:02:07]}  Kf8 {[%clk 0:01:57]} 17. Be2 {[%clk 0:01:56]}  Bf5 {[%clk 0:01:33]} 18. Bxd6 {[%clk 0:01:55]}  Qd7 {[%clk 0:01:34]} 19. Bxe7+ {[%clk 0:01:52]}  Kg8 {[%clk 0:01:33]} 20. Qxf5 {[%clk 0:01:40]}  Qxf5 {[%clk 0:01:33]} 21. Bb4 {[%clk 0:01:39]}  Nc6 {[%clk 0:01:32]} 22. e4 {[%clk 0:01:34]}  Qd7 {[%clk 0:01:20]} 23. exd5 {[%clk 0:01:34]}  Nxb4 {[%clk 0:01:20]} 24. cxb4 {[%clk 0:01:34]}  c3 {[%clk 0:01:21]} 25. Nb3 {[%clk 0:01:30]}  Qxd5 {[%clk 0:01:18]} 26. Nc5 {[%clk 0:01:28]}  g4 {[%clk 0:01:14]} 27. hxg4 {[%clk 0:01:26]}  hxg4 {[%clk 0:01:15]} 28. Rxh8+ {[%clk 0:01:25]}  Kxh8 {[%clk 0:01:14]} 29. Nh4 {[%clk 0:01:23]}  Qxd4 {[%clk 0:01:11]} 30. Bd3 {[%clk 0:01:07]}  Qxb4 {[%clk 0:01:06]} 31. Ne6 {[%clk 0:00:58]}  Re8 {[%clk 0:00:59]} 32. Bf5 {[%clk 0:00:49]}  Rxe6+ {[%clk 0:00:56]} 33. Bxe6 {[%clk 0:00:49]}  Qe4+ {[%clk 0:00:56]} 34. Kf1 {[%clk 0:00:49]}  Qxe6 {[%clk 0:00:55]} 35. Ng6+ {[%clk 0:00:48]}  Kg8 {[%clk 0:00:54]} 36. Re1 {[%clk 0:00:47]}  Qc4+ {[%clk 0:00:52]} 37. Kg1 {[%clk 0:00:38]}  c2 {[%clk 0:00:52]} 0-1


[Site "https://www.chess.com"]

[Event "Titled Tuesday Blitz October 31 Late 2023"]
[White "Pantev, Veselin"]
[Black "Stanojevic, Ilija"]
[WhiteFideId "2901390"]
[BlackFideId "959995"]
[WhiteElo "2682"]
[BlackElo "2377"]
[Result "1-0"]
[Round "2"]
[TimeControl "180+1"]
[Date "2023.10.31"]
[WhiteClock "0:01:31"]
[BlackClock "0:00:11"]
[Board "69"]

1. d4 {[%clk 0:02:59]}  Nf6 {[%clk 0:02:56]} 2. Bf4 {[%clk 0:02:57]}  d6 {[%clk 0:02:56]} 3. e3 {[%clk 0:02:58]}  g6 {[%clk 0:02:55]} 4. Nf3 {[%clk 0:02:58]}  Bg7 {[%clk 0:02:55]} 5. c4 {[%clk 0:02:58]}  O-O {[%clk 0:02:55]} 6. Nc3 {[%clk 0:02:58]}  Nbd7 {[%clk 0:02:55]} 7. Be2 {[%clk 0:02:59]}  c6 {[%clk 0:02:55]} 8. h3 {[%clk 0:02:58]}  Re8 {[%clk 0:02:54]} 9. O-O {[%clk 0:02:58]}  e5 {[%clk 0:02:47]} 10. dxe5 {[%clk 0:02:58]}  dxe5 {[%clk 0:02:48]} 11. Nxe5 {[%clk 0:02:58]}  Qb6 {[%clk 0:02:31]} 12. Nxd7 {[%clk 0:02:52]}  Bxd7 {[%clk 0:02:29]} 13. Qb3 {[%clk 0:02:48]}  Qa5 {[%clk 0:01:55]} 14. Qxb7 {[%clk 0:02:41]}  Be6 {[%clk 0:01:21]} 15. Qxc6 {[%clk 0:02:33]}  Rac8 {[%clk 0:01:15]} 16. Qb5 {[%clk 0:02:32]}  Qxb5 {[%clk 0:01:05]} 17. Nxb5 {[%clk 0:02:32]}  Ne4 {[%clk 0:01:01]} 18. f3 {[%clk 0:02:22]}  Nd2 {[%clk 0:01:00]} 19. Nd6 {[%clk 0:02:08]}  Nxf1 {[%clk 0:00:54]} 20. Nxe8 {[%clk 0:02:08]}  Rxe8 {[%clk 0:00:42]} 21. Rxf1 {[%clk 0:02:05]}  Bxb2 {[%clk 0:00:41]} 22. Rb1 {[%clk 0:02:03]}  Bc3 {[%clk 0:00:40]} 23. Rb7 {[%clk 0:02:01]}  a5 {[%clk 0:00:40]} 24. Bh6 {[%clk 0:01:47]}  Rc8 {[%clk 0:00:16]} 25. Kf2 {[%clk 0:01:39]}  f6 {[%clk 0:00:16]} 26. Rg7+ {[%clk 0:01:31]}  Kh8 {[%clk 0:00:15]} 27. Re7 {[%clk 0:01:31]}  Bg8 {[%clk 0:00:11]} 28. Bg7# {[%clk 0:01:31]} 1-0


[Site "https://www.chess.com"]

[Event "Titled Tuesday Blitz October 31 Late 2023"]
[White "Rosen, Eric"]
[Black "Ramadoss, Ashokkumar"]
[WhiteFideId "2032562"]
[BlackFideId "5040990"]
[WhiteElo "2674"]
[BlackElo "2374"]
[Result "1/2-1/2"]
[Round "2"]
[TimeControl "180+1"]
[Date "2023.10.31"]
[WhiteClock "0:00:17"]
[BlackClock "0:00:26"]
[Board "70"]

1. e4 {[%clk 0:03:00]}  e6 {[%clk 0:02:59]} 2. f4 {[%clk 0:03:00]}  d5 {[%clk 0:03:00]} 3. e5 {[%clk 0:03:01]}  c5 {[%clk 0:03:00]} 4. Nf3 {[%clk 0:03:01]}  Nc6 {[%clk 0:03:00]} 5. c3 {[%clk 0:03:00]}  Nge7 {[%clk 0:02:55]} 6. Na3 {[%clk 0:03:00]}  a6 {[%clk 0:02:55]} 7. Nc2 {[%clk 0:02:58]}  Nf5 {[%clk 0:02:53]} 8. Bd3 {[%clk 0:02:56]}  g6 {[%clk 0:02:47]} 9. O-O {[%clk 0:02:53]}  b5 {[%clk 0:02:38]} 10. g3 {[%clk 0:02:46]}  h5 {[%clk 0:02:34]} 11. Bxf5 {[%clk 0:02:26]}  gxf5 {[%clk 0:02:34]} 12. d4 {[%clk 0:02:26]}  c4 {[%clk 0:02:22]} 13. h4 {[%clk 0:02:24]}  Be7 {[%clk 0:02:17]} 14. Kg2 {[%clk 0:02:20]}  Bb7 {[%clk 0:02:15]} 15. Rh1 {[%clk 0:02:18]}  a5 {[%clk 0:02:12]} 16. Ng5 {[%clk 0:02:17]}  Qd7 {[%clk 0:01:55]} 17. Ne3 {[%clk 0:02:16]}  b4 {[%clk 0:01:40]} 18. Bd2 {[%clk 0:02:06]}  a4 {[%clk 0:01:35]} 19. a3 {[%clk 0:02:06]}  b3 {[%clk 0:01:11]} 20. Qf3 {[%clk 0:01:59]}  Bf8 {[%clk 0:01:01]} 21. Rae1 {[%clk 0:01:54]}  O-O-O {[%clk 0:00:55]} 22. Re2 {[%clk 0:01:46]}  Kb8 {[%clk 0:00:54]} 23. Kf2 {[%clk 0:01:40]}  Rc8 {[%clk 0:00:54]} 24. Ke1 {[%clk 0:01:40]}  Nd8 {[%clk 0:00:53]} 25. Kd1 {[%clk 0:01:38]}  Ka8 {[%clk 0:00:48]} 26. Rhe1 {[%clk 0:01:23]}  Qb5 {[%clk 0:00:42]} 27. Ng2 {[%clk 0:01:21]}  Bxa3 {[%clk 0:00:30]} 28. Bc1 {[%clk 0:01:12]}  Bf8 {[%clk 0:00:29]} 29. Qf2 {[%clk 0:01:04]}  Qc6 {[%clk 0:00:26]} 30. Rd2 {[%clk 0:01:02]}  Qd7 {[%clk 0:00:26]} 31. Ree2 {[%clk 0:01:02]}  Qc6 {[%clk 0:00:26]} 32. Ke1 {[%clk 0:01:03]}  Qd7 {[%clk 0:00:26]} 33. Kf1 {[%clk 0:01:04]}  Qc6 {[%clk 0:00:26]} 34. Kg1 {[%clk 0:01:04]}  Qd7 {[%clk 0:00:27]} 35. Rd1 {[%clk 0:01:05]}  Qe7 {[%clk 0:00:27]} 36. Be3 {[%clk 0:01:06]}  Qd7 {[%clk 0:00:27]} 37. Ra1 {[%clk 0:01:06]}  Bc6 {[%clk 0:00:27]} 38. Qf3 {[%clk 0:01:05]}  Kb7 {[%clk 0:00:27]} 39. Bf2 {[%clk 0:01:06]}  Ra8 {[%clk 0:00:27]} 40. Ne3 {[%clk 0:01:07]}  Be7 {[%clk 0:00:26]} 41. Nf1 {[%clk 0:01:04]}  Bf8 {[%clk 0:00:26]} 42. Be3 {[%clk 0:01:05]}  Be7 {[%clk 0:00:26]} 43. Bc1 {[%clk 0:01:05]}  Bf8 {[%clk 0:00:26]} 44. Rg2 {[%clk 0:00:57]}  Be7 {[%clk 0:00:26]} 45. Qd1 {[%clk 0:00:58]}  Bf8 {[%clk 0:00:26]} 46. Nd2 {[%clk 0:00:58]}  Be7 {[%clk 0:00:26]} 47. Nb1 {[%clk 0:00:58]}  Bf8 {[%clk 0:00:26]} 48. Na3 {[%clk 0:00:58]}  Be7 {[%clk 0:00:26]} 49. Be3 {[%clk 0:00:58]}  Bf8 {[%clk 0:00:26]} 50. Qd2 {[%clk 0:00:58]}  Be7 {[%clk 0:00:26]} 51. Qf2 {[%clk 0:00:58]}  Bf8 {[%clk 0:00:26]} 52. Rh2 {[%clk 0:00:58]}  Be7 {[%clk 0:00:26]} 53. Qf3 {[%clk 0:00:57]}  Bf8 {[%clk 0:00:25]} 54. Bf2 {[%clk 0:00:58]}  Be7 {[%clk 0:00:26]} 55. Be3 {[%clk 0:00:42]}  Bf8 {[%clk 0:00:26]} 56. Qe2 {[%clk 0:00:42]}  Be7 {[%clk 0:00:26]} 57. Qd2 {[%clk 0:00:42]}  Bf8 {[%clk 0:00:25]} 58. Kf2 {[%clk 0:00:43]}  Be7 {[%clk 0:00:25]} 59. Kf3 {[%clk 0:00:44]}  Bf8 {[%clk 0:00:25]} 60. Nb1 {[%clk 0:00:39]}  Be7 {[%clk 0:00:25]} 61. Qe2 {[%clk 0:00:39]}  Bf8 {[%clk 0:00:25]} 62. Kf2 {[%clk 0:00:40]}  Be7 {[%clk 0:00:25]} 63. Ke1 {[%clk 0:00:40]}  Bf8 {[%clk 0:00:25]} 64. Qf2 {[%clk 0:00:41]}  Be7 {[%clk 0:00:25]} 65. Ke2 {[%clk 0:00:42]}  Bf8 {[%clk 0:00:25]} 66. Bc1 {[%clk 0:00:42]}  Be7 {[%clk 0:00:25]} 67. Nd2 {[%clk 0:00:43]}  Bf8 {[%clk 0:00:25]} 68. Nf1 {[%clk 0:00:43]}  Be7 {[%clk 0:00:25]} 69. Qe3 {[%clk 0:00:42]}  Bf8 {[%clk 0:00:25]} 70. g4 {[%clk 0:00:42]}  hxg4 {[%clk 0:00:25]} 71. Ng3 {[%clk 0:00:43]}  Bh6 {[%clk 0:00:23]} 72. Qf2 {[%clk 0:00:40]}  Qe7 {[%clk 0:00:20]} 73. Qg2 {[%clk 0:00:36]}  Bf8 {[%clk 0:00:19]} 74. Nf1 {[%clk 0:00:35]}  Bh6 {[%clk 0:00:19]} 75. Qh1 {[%clk 0:00:32]}  Bd7 {[%clk 0:00:19]} 76. Ne3 {[%clk 0:00:32]}  Bc6 {[%clk 0:00:19]} 77. Bd2 {[%clk 0:00:31]}  Bf8 {[%clk 0:00:18]} 78. Nf1 {[%clk 0:00:30]}  Bh6 {[%clk 0:00:19]} 79. h5 {[%clk 0:00:30]}  Kc7 {[%clk 0:00:17]} 80. Ng3 {[%clk 0:00:29]}  Nb7 {[%clk 0:00:17]} 81. Bc1 {[%clk 0:00:28]}  Na5 {[%clk 0:00:16]} 82. Ke3 {[%clk 0:00:27]}  Nb7 {[%clk 0:00:17]} 83. Kf2 {[%clk 0:00:27]}  Nd8 {[%clk 0:00:17]} 84. Be3 {[%clk 0:00:25]}  Nb7 {[%clk 0:00:18]} 85. Ra3 {[%clk 0:00:26]}  Na5 {[%clk 0:00:18]} 86. Qa1 {[%clk 0:00:26]}  Nb7 {[%clk 0:00:19]} 87. Qf1 {[%clk 0:00:26]}  Nd8 {[%clk 0:00:19]} 88. Kg2 {[%clk 0:00:24]}  Nb7 {[%clk 0:00:20]} 89. Ne2 {[%clk 0:00:24]}  Nd8 {[%clk 0:00:20]} 90. Qf2 {[%clk 0:00:25]}  Nb7 {[%clk 0:00:20]} 91. Qh4 {[%clk 0:00:25]}  Kd7 {[%clk 0:00:19]} 92. Ng3 {[%clk 0:00:25]}  Nd8 {[%clk 0:00:19]} 93. Rh1 {[%clk 0:00:25]}  Nb7 {[%clk 0:00:19]} 94. Bc1 {[%clk 0:00:25]}  Nd8 {[%clk 0:00:20]} 95. Qh2 {[%clk 0:00:25]}  Nb7 {[%clk 0:00:20]} 96. Qg1 {[%clk 0:00:24]}  Nd8 {[%clk 0:00:21]} 97. Qf2 {[%clk 0:00:23]}  Nb7 {[%clk 0:00:21]} 98. Ne2 {[%clk 0:00:23]}  Nd8 {[%clk 0:00:21]} 99. Qh4 {[%clk 0:00:23]}  Nb7 {[%clk 0:00:21]} 100. Kg3 {[%clk 0:00:23]}  Nd8 {[%clk 0:00:21]} 101. Be3 {[%clk 0:00:24]}  Nb7 {[%clk 0:00:21]} 102. Kf2 {[%clk 0:00:23]}  Nd8 {[%clk 0:00:22]} 103. Ng3 {[%clk 0:00:24]}  Nb7 {[%clk 0:00:22]} 104. Nf1 {[%clk 0:00:25]}  Nd8 {[%clk 0:00:23]} 105. Nd2 {[%clk 0:00:25]}  Nb7 {[%clk 0:00:23]} 106. Qg3 {[%clk 0:00:25]}  Nd8 {[%clk 0:00:24]} 107. Rha1 {[%clk 0:00:25]}  Nb7 {[%clk 0:00:24]} 108. Rh1 {[%clk 0:00:24]}  Nd8 {[%clk 0:00:24]} 109. Raa1 {[%clk 0:00:25]}  Nb7 {[%clk 0:00:25]} 110. Ke2 {[%clk 0:00:25]}  Nd8 {[%clk 0:00:24]} 111. Nb1 {[%clk 0:00:26]}  Nb7 {[%clk 0:00:24]} 112. Na3 {[%clk 0:00:26]}  Nd8 {[%clk 0:00:25]} 113. Qg2 {[%clk 0:00:25]}  Nb7 {[%clk 0:00:26]} 114. Nb1 {[%clk 0:00:21]}  Nd8 {[%clk 0:00:25]} 115. Nd2 {[%clk 0:00:21]}  Nb7 {[%clk 0:00:25]} 116. Nf1 {[%clk 0:00:18]}  Nd8 {[%clk 0:00:26]} 117. Ng3 {[%clk 0:00:19]}  Nb7 {[%clk 0:00:26]} 118. Ke1 {[%clk 0:00:19]}  Nd8 {[%clk 0:00:26]} 119. Qd2 {[%clk 0:00:20]}  Nb7 {[%clk 0:00:27]} 120. Ne2 {[%clk 0:00:20]}  Nd8 {[%clk 0:00:27]} 121. Bf2 {[%clk 0:00:21]}  Nb7 {[%clk 0:00:28]} 122. Bh4 {[%clk 0:00:22]}  Qe8 {[%clk 0:00:26]} 123. Ng3 {[%clk 0:00:21]}  Nd8 {[%clk 0:00:27]} 124. Rd1 {[%clk 0:00:16]}  Nb7 {[%clk 0:00:26]} 125. Qc1 {[%clk 0:00:17]}  Nd8 {[%clk 0:00:26]} 126. Qa1 {[%clk 0:00:17]}  Nb7 {[%clk 0:00:26]} 127. Qa3 {[%clk 0:00:18]}  Bf8 {[%clk 0:00:26]} 128. Qa1 {[%clk 0:00:18]}  Bh6 {[%clk 0:00:26]} 129. Kf2 {[%clk 0:00:17]} 1/2-1/2


[Site "https://www.chess.com"]

[Event "Titled Tuesday Blitz October 31 Late 2023"]
[White "Colivet Gamboa, Julio Cesar"]
[Black "Wu, Derek"]
[WhiteFideId "3949583"]
[BlackFideId "30914558"]
[WhiteElo "2373"]
[BlackElo "2673"]
[Result "0-1"]
[Round "2"]
[TimeControl "180+1"]
[Date "2023.10.31"]
[WhiteClock "0:00:29"]
[BlackClock "0:00:56"]
[Board "71"]

1. e4 {[%clk 0:03:00]}  c5 {[%clk 0:03:00]} 2. Nf3 {[%clk 0:03:00]}  e6 {[%clk 0:03:00]} 3. d4 {[%clk 0:03:00]}  cxd4 {[%clk 0:03:01]} 4. Nxd4 {[%clk 0:03:01]}  Nf6 {[%clk 0:03:01]} 5. Nc3 {[%clk 0:03:00]}  Nc6 {[%clk 0:03:01]} 6. Bg5 {[%clk 0:02:55]}  Bb4 {[%clk 0:02:44]} 7. Nxc6 {[%clk 0:02:51]}  bxc6 {[%clk 0:02:45]} 8. e5 {[%clk 0:02:51]}  Qa5 {[%clk 0:02:45]} 9. exf6 {[%clk 0:02:37]}  Qxg5 {[%clk 0:02:46]} 10. fxg7 {[%clk 0:02:37]}  Qe5+ {[%clk 0:02:39]} 11. Be2 {[%clk 0:02:24]}  Bxc3+ {[%clk 0:02:39]} 12. bxc3 {[%clk 0:02:23]}  Qxc3+ {[%clk 0:02:40]} 13. Kf1 {[%clk 0:02:24]}  Qxg7 {[%clk 0:02:40]} 14. Rb1 {[%clk 0:02:22]}  d5 {[%clk 0:02:23]} 15. c4 {[%clk 0:01:56]}  O-O {[%clk 0:02:13]} 16. cxd5 {[%clk 0:01:49]}  exd5 {[%clk 0:02:09]} 17. Qc2 {[%clk 0:01:45]}  Qf6 {[%clk 0:01:58]} 18. Bd3 {[%clk 0:01:39]}  h6 {[%clk 0:01:53]} 19. h4 {[%clk 0:01:33]}  Bg4 {[%clk 0:01:46]} 20. f3 {[%clk 0:01:28]}  Rab8 {[%clk 0:01:44]} 21. Kf2 {[%clk 0:01:20]}  Qd4+ {[%clk 0:01:38]} 22. Kg3 {[%clk 0:01:13]}  Be6 {[%clk 0:01:38]} 23. Rhe1 {[%clk 0:01:09]}  c5 {[%clk 0:01:35]} 24. Bb5 {[%clk 0:00:51]}  Kh8 {[%clk 0:01:29]} 25. Rbd1 {[%clk 0:00:48]}  Rg8+ {[%clk 0:01:17]} 26. Kh2 {[%clk 0:00:42]}  Qxh4+ {[%clk 0:01:17]} 27. Kg1 {[%clk 0:00:42]}  Rxb5 {[%clk 0:01:15]} 28. Qe2 {[%clk 0:00:36]}  Qg5 {[%clk 0:01:01]} 29. g4 {[%clk 0:00:29]}  Rb4 {[%clk 0:00:56]} 0-1


[Site "https://www.chess.com"]

[Event "Titled Tuesday Blitz October 31 Late 2023"]
[White "GAO"]
[Black "Domingo Nunez, Ruben"]
[BlackFideId "22245570"]
[WhiteElo "2340"]
[BlackElo "2671"]
[Result "1-0"]
[Round "2"]
[TimeControl "180+1"]
[Date "2023.10.31"]
[WhiteClock "0:00:17"]
[BlackClock "0:00:23"]
[Board "73"]

1. Nf3 {[%clk 0:03:00]}  g6 {[%clk 0:03:00]} 2. d4 {[%clk 0:03:00]}  Bg7 {[%clk 0:03:01]} 3. Nbd2 {[%clk 0:02:58]}  c6 {[%clk 0:03:00]} 4. e4 {[%clk 0:02:58]}  d5 {[%clk 0:03:01]} 5. c3 {[%clk 0:02:56]}  dxe4 {[%clk 0:03:02]} 6. Nxe4 {[%clk 0:02:57]}  Nf6 {[%clk 0:03:02]} 7. Bd3 {[%clk 0:02:57]}  O-O {[%clk 0:03:02]} 8. O-O {[%clk 0:02:55]}  Nbd7 {[%clk 0:03:03]} 9. Re1 {[%clk 0:02:55]}  Nxe4 {[%clk 0:03:03]} 10. Bxe4 {[%clk 0:02:55]}  c5 {[%clk 0:03:03]} 11. Be3 {[%clk 0:02:53]}  Nf6 {[%clk 0:03:02]} 12. Bc2 {[%clk 0:02:53]}  cxd4 {[%clk 0:03:01]} 13. Bxd4 {[%clk 0:02:52]}  Qc7 {[%clk 0:02:45]} 14. Qe2 {[%clk 0:02:51]}  Re8 {[%clk 0:02:23]} 15. Rad1 {[%clk 0:02:45]}  Be6 {[%clk 0:02:19]} 16. Be5 {[%clk 0:02:34]}  Qb6 {[%clk 0:02:15]} 17. Nd4 {[%clk 0:02:29]}  Bg4 {[%clk 0:02:12]} 18. f3 {[%clk 0:02:16]}  Bd7 {[%clk 0:02:12]} 19. Bb3 {[%clk 0:02:12]}  a5 {[%clk 0:02:11]} 20. Rb1 {[%clk 0:01:48]}  a4 {[%clk 0:02:09]} 21. Bc2 {[%clk 0:01:48]}  Rac8 {[%clk 0:02:07]} 22. Qf2 {[%clk 0:01:48]}  Qa5 {[%clk 0:01:54]} 23. h3 {[%clk 0:01:37]}  a3 {[%clk 0:01:27]} 24. b4 {[%clk 0:01:28]}  Qa7 {[%clk 0:01:27]} 25. Nb3 {[%clk 0:01:28]}  Qxf2+ {[%clk 0:01:23]} 26. Kxf2 {[%clk 0:01:29]}  Nd5 {[%clk 0:01:23]} 27. Bxg7 {[%clk 0:01:25]}  Kxg7 {[%clk 0:01:24]} 28. Nc5 {[%clk 0:01:24]}  Bb5 {[%clk 0:01:03]} 29. Rb3 {[%clk 0:00:55]}  b6 {[%clk 0:01:02]} 30. Be4 {[%clk 0:00:54]}  Nf4 {[%clk 0:00:52]} 31. Nb7 {[%clk 0:00:40]}  f5 {[%clk 0:00:49]} 32. Bc2 {[%clk 0:00:35]}  Rc7 {[%clk 0:00:49]} 33. c4 {[%clk 0:00:26]}  Bxc4 {[%clk 0:00:32]} 34. Rc3 {[%clk 0:00:22]}  Nd5 {[%clk 0:00:29]} 35. Rxc4 {[%clk 0:00:19]}  Rc5 {[%clk 0:00:23]} 36. bxc5 {[%clk 0:00:17]} 1-0


[Site "https://www.chess.com"]